bitfinex/quotes_SOLUSD_20260124
["timestamp","ask_amount","ask_price","bid_price","bid_amount"]
[1769264679887,2.32082995,127.07,127.04,24.07495873]
[1769264680096,2.32082995,127.07,127.04,0.61204391]
[1769264680801,0.19982555,127.07,127.04,0.61204391]
[1769264690309,0.20905904,127.06,127.04,0.61204391]
[1769264691006,2.12328581,127.07,127.04,0.61204391]
[1769264691198,2.33320964,127.07,127.04,0.61204391]
[1769264691807,106.45121912,127.1,127.02,0.2]
[1769264691808,2.33406676,127.05,127.02,0.2]
[1769264692012,2.33406676,127.04,127.02,0.2]
[1769264694406,2.12328581,127.03,127.01,0.2]
[1769264694616,2.12328581,127.02,127.0,0.2]
[1769264698398,2.12328581,127.01,127.0,0.2]
[1769264699501,2.12328581,127.01,126.99,0.2]
[1769264699821,2.14330328,127.01,126.99,0.2]
[1769264701114,2.14330328,127.01,126.99,0.1585]
[1769264701405,0.02001747,127.01,126.99,0.1585]
[1769264702617,0.02001747,127.01,126.99,0.83601869]
[1769264704218,2.14920048,127.02,126.99,0.83601869]
[1769264705219,0.02705319,127.03,126.99,2.28178581]
[1769264705519,0.02705319,127.03,127.01,0.67751869]
[1769264705721,2.15146352,127.04,127.01,0.67751869]
[1769264705915,0.02817771,127.05,127.02,0.67751869]
[1769264708220,2.12328581,127.04,127.02,0.67751869]
[1769264710637,2.15146352,127.05,127.02,0.67751869]
[1769264711524,2.15794691,127.04,127.0,0.67751869]
[1769264711704,2.15898547,127.03,127.0,0.67751869]
[1769264720734,2.12328581,127.02,127.0,0.67751869]
[1769264727526,2.15898547,127.03,127.0,0.67751869]
[1769264728843,2.12328581,127.02,127.0,0.67751869]
[1769264730843,0.03569966,127.03,127.0,0.67751869]
[1769264731132,2.12328581,127.02,127.0,0.67751869]
[1769264731337,0.03569966,127.03,127.0,0.67751869]
[1769264731636,2.15898547,127.03,127.0,0.67751869]
[1769264732745,2.12328581,127.03,127.0,0.67751869]
[1769264732926,2.17906975,127.03,127.0,0.67751869]
[1769264733142,2.12328581,127.03,127.0,0.67751869]
[1769264733451,105.47906975,127.04,127.0,0.67751869]
[1769264734233,105.42328581,127.04,127.0,0.67751869]
[1769264734434,103.35658801,127.04,127.0,0.67751869]
[1769264734718,105.42328581,127.04,127.0,0.67751869]
[1769264735140,105.48066986,127.04,127.0,0.67751869]
[1769264735441,105.42328581,127.04,127.0,0.67751869]
[1769264736329,105.48144751,127.04,127.0,0.67751869]
[1769264741452,103.3,127.04,127.0,0.67751869]
[1769264741751,103.3,127.04,127.01,0.67751869]
[1769264748853,103.3,127.04,127.02,0.67751869]
[1769264749353,0.06751715,127.06,127.03,0.67751869]
[1769264763675,5.34408856,127.08,127.02,2.12415136]
[1769264763676,0.07720702,127.08,127.05,2.83664654]
[1769264763871,2.20135838,127.08,127.05,0.71249518]
[1769264765049,0.07720702,127.08,127.05,0.71249518]
[1769264780464,0.08573479,127.09,127.06,0.67751869]
[1769264783882,108.73159404,127.1,127.06,0.67751869]
[1769264784784,110.8557454,127.1,127.06,0.67751869]
[1769264785389,103.3,127.1,127.08,0.67751869]
[1769264789582,0.09000981,127.11,127.08,0.67751869]
[1769264789782,0.09000981,127.1,127.07,0.67751869]
[1769264794305,0.09000981,127.1,127.08,0.67751869]
[1769264805280,5.43997894,127.11,127.08,0.67751869]
[1769264809204,5.43997894,127.11,127.08,0.14260246]
[1769264818217,5.34408856,127.11,127.08,0.14260246]
[1769264820284,103.3,127.12,127.09,0.66207488]
[1769264820488,103.94814754,127.13,127.09,2.1219439]
[1769264822390,103.94814754,127.13,127.09,2.84034938]
[1769264822586,0.72794437,127.12,127.09,0.71840548]
[1769264826305,0.72794437,127.12,127.09,2.84034938]
[1769264831221,103.3,127.13,127.09,2.84034938]
[1769264831222,103.3,127.13,127.1,0.68970067]
[1769264831922,104.04028296,127.13,127.1,0.68970067]
[1769264833020,0.74028296,127.12,127.1,0.68970067]
[1769264837530,104.04028296,127.13,127.1,0.68970067]
[1769264838528,103.3,127.13,127.1,0.68970067]
[1769264838733,0.74028296,127.12,127.09,2.81164457]
[1769264839535,0.74028296,127.12,127.09,0.68970067]
[1769264842833,0.74028296,127.12,127.09,2.81164457]
[1769264844437,0.74028296,127.12,127.09,0.68970067]
[1769264847038,104.04028296,127.13,127.09,0.68970067]
[1769264847731,104.04028296,127.13,127.1,0.68970067]
[1769264849339,104.04028296,127.13,127.11,0.68970067]
[1769264852041,103.3,127.13,127.11,0.68970067]
[1769264852725,0.71479437,127.14,127.11,0.68970067]
[1769264905985,104.07851263,127.15,127.11,0.68970067]
[1769264906188,104.07851263,127.15,127.12,0.78522256]
[1769264906364,104.07851263,127.15,127.12,0.17997179]
[1769264911988,0.77851263,127.14,127.12,0.17997179]
[1769264916394,0.77851263,127.14,127.12,0.04307563]
[1769264917886,103.3,127.15,127.12,0.04307563]
[1769264918091,104.0429569,127.15,127.12,0.04307563]
[1769264920393,0.7429569,127.14,127.12,0.04307563]
[1769264926700,0.7429569,127.14,127.1,2.88402352]
[1769264927270,0.7429569,127.14,127.11,0.76328608]
[1769264928596,0.7429569,127.14,127.11,2.88402352]
[1769264929300,0.7429569,127.14,127.12,0.76328608]
[1769264941520,0.7429569,127.14,127.1,0.76328608]
[1769264943126,0.7429569,127.14,127.1,2.88379128]
[1769264943419,0.7429569,127.14,127.1,0.76328608]
[1769264943420,0.84879296,127.13,127.1,0.76328608]
[1769264946702,0.84879296,127.13,127.1,2.88379128]
[1769264985962,0.84879296,127.13,127.1,22.55755716]
[1769264987955,0.84879296,127.13,127.1,20.43705196]
[1769264992543,0.84879296,127.13,127.1,22.55799332]
[1769264993842,0.84879296,127.13,127.1,2.88422744]
[1769264994858,0.84879296,127.13,127.11,0.85490534]
[1769264995249,0.84879296,127.13,127.11,2.9758467]
[1769264995951,0.84879296,127.13,127.11,2.12094136]
[1769265001938,0.84879296,127.13,127.1,2.9758467]
[1769265002145,0.84879296,127.13,127.11,0.85490534]
[1769265003160,0.84879296,127.13,127.11,2.9758467]
[1769265003343,0.85565357,127.14,127.11,2.9758467]
[1769265003549,0.85565357,127.15,127.12,2.96684481]
[1769265004062,0.85565357,127.15,127.13,2.96684481]
[1769265004267,6.19974213,127.16,127.13,2.96684481]
[1769265004653,6.19974213,127.16,127.13,0.84590345]
[1769265004867,6.19974213,127.16,127.13,2.96684481]
[1769265005985,0.85565357,127.15,127.13,2.96684481]
[1769265010970,0.85565357,127.15,127.13,0.84590345]
[1769265012050,6.11472221,127.16,127.13,0.84590345]
[1769265012770,6.11472221,127.16,127.14,0.79229632]
[1769265012970,104.17063365,127.17,127.15,2.12094136]
[1769265013564,104.17063365,127.17,127.14,22.58513025]
[1769265016884,0.87063365,127.17,127.14,22.58513025]
[1769265017570,0.87063365,127.17,127.14,2.91323768]
[1769265024288,0.87063365,127.17,127.13,26.5287767]
[1769265032089,0.87063365,127.17,127.14,2.12094136]
[1769265034771,0.87063365,127.17,127.13,26.5287767]
[1769265035390,0.87063365,127.17,127.14,0.75384742]
[1769265037393,0.87063365,127.17,127.14,2.87478878]
[1769265041980,0.79385342,127.16,127.12,2.87478878]
[1769265042294,0.79385342,127.16,127.13,0.75384742]
[1769265051511,0.79385342,127.16,127.11,24.37124556]
[1769265051715,0.79385342,127.13,127.1,0.75384742]
[1769265053612,2.91521035,127.13,127.1,0.75384742]
[1769265055416,0.79385342,127.13,127.1,0.75384742]
[1769265060311,0.79385342,127.13,127.1,2.12135693]
[1769265060618,0.79385342,127.13,127.11,0.75384742]
[1769265068832,104.01986625,127.16,127.13,0.7302148]
[1769265069025,0.71986625,127.16,127.13,2.12135693]
[1769265070010,0.85113446,127.17,127.14,2.12135693]
[1769265070946,0.85113446,127.17,127.14,2.3437012]
[1769265075832,0.85113446,127.17,127.15,2.12135693]
[1769265077234,0.85113446,127.17,127.15,2.33534127]
[1769265086931,0.1,127.17,127.15,2.33534127]
[1769265087741,109.49522302,127.19,127.16,2.32140154]
[1769265087933,104.15113446,127.19,127.16,2.32140154]
[1769265094851,0.75261617,127.18,127.16,2.32140154]
[1769265096756,0.75261617,127.18,127.17,2.12135693]
[1769265097754,104.15261617,127.19,127.17,2.12135693]
[1769265098857,0.85261617,127.19,127.17,2.12135693]
[1769265104563,0.85261617,127.19,127.18,2.12135693]
[1769265110982,0.85261617,127.19,127.17,2.12135693]
[1769265114372,0.75261617,127.2,127.18,2.12135693]
[1769265114878,0.75261617,127.2,127.18,2.11805663]
[1769265115074,0.85261617,127.21,127.19,2.11805663]
[1769265119282,0.85261617,127.21,127.18,2.19516834]
[1769265119670,0.85261617,127.21,127.19,2.11805663]
[1769265121198,0.85261617,127.21,127.18,2.19516834]
[1769265123394,0.85261617,127.21,127.18,2.11805663]
[1769265124381,0.85261617,127.21,127.17,2.11805663]
[1769265124579,0.71956957,127.2,127.16,2.11805663]
[1769265132178,0.71956957,127.2,127.16,2.18328305]
[1769265132497,0.70917801,127.19,127.15,2.11805663]
[1769265133190,0.70917801,127.19,127.15,2.18273259]
[1769265133392,0.70917801,127.16,127.13,0.06467596]
[1769265133570,0.70917801,127.16,127.13,2.18273259]
[1769265133773,0.70917801,127.16,127.13,0.06467596]
[1769265138775,0.70917801,127.16,127.13,2.18273259]
[1769265139492,0.70917801,127.16,127.13,0.06467596]
[1769265140804,0.70917801,127.16,127.13,2.18273259]
[1769265141978,0.70917801,127.17,127.15,2.11805663]
[1769265143304,0.70917801,127.19,127.15,2.17753068]
[1769265144308,0.70917801,127.19,127.16,2.17704393]
[1769265144510,0.70917801,127.19,127.17,2.11805663]
[1769265145108,0.70917801,127.19,127.16,2.17704393]
[1769265145887,104.00917801,127.2,127.17,2.17608093]
[1769265146214,0.70917801,127.19,127.17,2.11805663]
[1769265147418,0.70917801,127.19,127.17,2.17560927]
[1769265148402,0.70917801,127.2,127.17,2.17560927]
[1769265148610,0.70917801,127.2,127.18,2.11805663]
[1769265149207,0.70917801,127.2,127.17,2.17560927]
[1769265152789,0.82753311,127.21,127.18,2.17244149]
[1769265154016,0.82753311,127.21,127.18,2.11805663]
[1769265163723,0.82753311,127.21,127.17,2.17201131]
[1769265167227,0.82753311,127.21,127.18,2.11805663]
[1769265176940,0.82753311,127.21,127.18,2.11822905]
[1769265180745,0.82753311,127.21,127.19,0.04402926]
[1769265180927,0.82753311,127.21,127.18,2.16225831]
[1769265181122,0.82753311,127.21,127.19,2.11822905]
[1769265184425,0.82753311,127.21,127.18,2.16225831]
[1769265185037,0.82753311,127.21,127.18,2.11822905]
[1769265185829,0.82753311,127.21,127.18,2.16045673]
[1769265190758,0.82753311,127.21,127.18,0.04222768]
[1769265191069,0.82753311,127.21,127.18,2.16045673]
[1769265194965,0.82753311,127.21,127.19,2.15770237]
[1769265195262,0.1,127.21,127.19,2.15770237]
[1769265195463,0.80715772,127.21,127.19,2.11822905]
[1769265197164,0.1,127.21,127.19,2.15719054]
[1769265198659,0.80715772,127.21,127.19,2.11822905]
[1769265201861,0.80715772,127.22,127.2,2.11822905]
[1769265203164,0.80715772,127.22,127.19,0.03772762]
[1769265203369,0.80715772,127.22,127.2,2.11822905]
[1769265208070,0.1,127.22,127.2,2.15456727]
[1769265208949,0.1,127.22,127.21,2.11822905]
[1769265209653,0.1,127.22,127.2,2.15456727]
[1769265209846,0.80715772,127.23,127.21,2.11822905]
[1769265210972,0.1,127.23,127.21,2.11822905]
[1769265211360,0.80715772,127.23,127.21,2.11822905]
[1769265212650,0.80715772,127.23,127.22,2.11822905]
[1769265213168,0.80715772,127.23,127.21,2.11822905]
[1769265215174,0.80715772,127.23,127.21,2.15284934]
[1769265217882,0.80715772,127.23,127.22,2.11822905]
[1769265222678,0.1,127.23,127.22,2.11822905]
[1769265224099,0.80715772,127.24,127.22,2.11822905]
[1769265225159,0.80715772,127.24,127.21,2.15284934]
[1769265230981,0.80715772,127.24,127.22,2.11822905]
[1769265236386,0.80715772,127.24,127.22,2.14227589]
[1769265238187,0.80715772,127.24,127.22,2.11822905]
[1769265238874,0.80715772,127.24,127.22,2.11668333]
[1769265252713,0.80715772,127.24,127.23,2.11668333]
[1769265252896,0.80715772,127.24,127.22,2.11668333]
[1769265264418,0.1,127.24,127.22,2.11668333]
[1769265265922,1.18430754,127.25,127.23,2.11668333]
[1769265266400,0.70715772,127.24,127.23,2.11668333]
[1769265266599,0.47714982,127.25,127.23,2.11668333]
[1769265266902,15.34790679,127.27,127.24,2.815297]
[1769265267099,15.34790679,127.27,127.25,2.11668333]
[1769265268522,0.67354734,127.26,127.25,2.11668333]
[1769265269112,103.4,127.28,127.25,2.11668333]
[1769265269313,0.1,127.28,127.25,2.11668333]
[1769265271218,0.67354734,127.27,127.25,2.11668333]
[1769265276525,0.78047521,127.28,127.26,2.11668333]
[1769265278227,0.78047521,127.28,127.25,2.78500252]
[1769265284434,0.78047521,127.28,127.26,2.11668333]
[1769265286317,0.78047521,127.28,127.25,2.78500252]
[1769265290140,0.78047521,127.28,127.25,2.11668333]
[1769265290823,0.78047521,127.28,127.25,2.78500252]
[1769265293137,0.78047521,127.28,127.24,2.11668333]
[1769265293342,0.78047521,127.28,127.24,2.78500252]
[1769265294745,2.21668333,127.28,127.24,0.66831919]
[1769265294928,0.68047521,127.27,127.24,0.66831919]
[1769265300444,0.68047521,127.27,127.24,2.78500252]
[1769265300940,0.68047521,127.27,127.24,0.66831919]
[1769265301160,0.68047521,127.27,127.24,2.78435929]
[1769265301742,0.68047521,127.27,127.24,0.66831919]
[1769265312362,0.1,127.28,127.25,0.72091271]
[1769265313339,0.7727256,127.28,127.26,0.72091271]
[1769265319167,0.1,127.28,127.26,0.72091271]
[1769265319555,0.7727256,127.28,127.26,0.72091271]
[1769265336481,0.1,127.29,127.26,0.72091271]
[1769265336664,2.2160401,127.29,127.26,0.72091271]
[1769265338481,2.89900765,127.29,127.26,0.72091271]
[1769265344262,2.79900765,127.28,127.26,0.72091271]
[1769265344463,0.68296755,127.28,127.26,0.72091271]
[1769265349491,0.68296755,127.28,127.24,10.67036709]
[1769265349688,0.68296755,127.28,127.24,9.97510979]
[1769265357696,0.68296755,127.28,127.24,10.67036709]
[1769265362998,0.68296755,127.28,127.24,8.55432699]
[1769265364197,0.68296755,127.28,127.24,10.70834718]
[1769265367011,0.68296755,127.28,127.24,9.97497377]
[1769265367305,0.68296755,127.28,127.25,0.73337341]
[1769265367699,0.68296755,127.28,127.24,10.70834718]
[1769265370105,0.68296755,127.28,127.25,0.75715676]
[1769265371602,0.68296755,127.28,127.25,8.61567608]
[1769265371987,0.84170254,127.29,127.26,0.75715676]
[1769265374713,0.1,127.29,127.27,2.87306084]
[1769265375415,0.1,127.29,127.27,0.75715676]
[1769265375994,0.1,127.29,127.28,0.75715676]
[1769265397709,0.1,127.3,127.29,0.78050045]
[1769265403413,5.46092904,127.32,127.29,0.78050045]
[1769265403613,2.31590408,127.32,127.29,0.78050045]
[1769265403813,0.2,127.32,127.29,8.63645407]
[1769265404014,111.35657335,127.33,127.31,0.78050045]
[1769265404235,113.47247743,127.33,127.31,0.78050045]
[1769265404937,114.20431605,127.33,127.31,0.78050045]
[1769265406134,106.3477427,127.33,127.31,0.78050045]
[1769265406336,106.3477427,127.33,127.29,0.78050045]
[1769265407425,125.99053995,127.33,127.29,0.78050045]
[1769265412118,106.3477427,127.33,127.29,0.78050045]
[1769265413819,104.23183862,127.33,127.29,0.78050045]
[1769265414036,106.3477427,127.33,127.29,0.78050045]
[1769265418751,2.11590408,127.32,127.29,0.78050045]
[1769265420040,2.8477427,127.32,127.29,0.78050045]
[1769265421442,2.11590408,127.31,127.29,0.78050045]
[1769265422636,1.96542497,127.31,127.29,0.78050045]
[1769265422832,2.11590408,127.31,127.29,0.78050045]
[1769265423038,2.11500508,127.31,127.29,0.78050045]
[1769265423241,0.80927527,127.29,127.27,0.761857]
[1769265423455,2.92428035,127.29,127.27,0.761857]
[1769265423635,2.11500508,127.29,127.27,0.761857]
[1769265423823,2.92428035,127.3,127.27,0.761857]
[1769265424760,2.11500508,127.29,127.27,0.761857]
[1769265433345,2.9394715,127.29,127.26,0.76366621]
[1769265434247,2.9394715,127.28,127.25,0.76366621]
[1769265438454,2.11500508,127.28,127.25,0.76366621]
[1769265438654,0.82446642,127.27,127.25,0.76366621]
[1769265438831,2.9394715,127.28,127.25,0.76366621]
[1769265439342,2.9394715,127.27,127.24,0.76366621]
[1769265444752,2.11500508,127.26,127.24,0.76366621]
[1769265447160,2.11500508,127.26,127.23,0.76366621]
[1769265448057,2.9394715,127.26,127.23,0.76366621]
[1769265448255,0.82446642,127.26,127.23,0.76366621]
[1769265450062,2.9394715,127.26,127.23,0.76366621]
[1769265450468,23.4244341,127.27,127.23,0.76366621]
[1769265450759,2.11500508,127.26,127.23,0.76366621]
[1769265451268,25.53943918,127.27,127.23,0.76366621]
[1769265452553,26.32409956,127.27,127.23,0.76366621]
[1769265453368,2.89966546,127.27,127.23,0.76366621]
[1769265453958,2.11500508,127.26,127.23,0.76366621]
[1769265457774,0.78466038,127.27,127.23,0.76366621]
[1769265457775,2.89966546,127.27,127.23,0.76366621]
[1769265458774,2.11500508,127.27,127.23,0.76366621]
[1769265458964,24.37976832,127.28,127.24,0.78093726]
[1769265458965,2.89966546,127.28,127.24,0.78093726]
[1769265475782,2.11500508,127.28,127.24,0.78093726]
[1769265476294,2.89966546,127.28,127.24,0.78093726]
[1769265480680,0.78466038,127.28,127.24,2.89594234]
[1769265480888,0.78466038,127.28,127.25,0.78093726]
[1769265482587,2.89966546,127.28,127.25,0.78093726]
[1769265484897,2.90077154,127.28,127.25,0.78093726]
[1769265494608,0.79398451,127.27,127.25,0.78093726]
[1769265494907,2.91009567,127.27,127.23,0.7946481]
[1769265498911,2.91009567,127.26,127.23,0.7946481]
[1769265500306,2.11611116,127.26,127.23,0.7946481]
[1769265510524,2.91009567,127.27,127.23,0.7946481]
[1769265512323,2.91009567,127.26,127.23,0.7946481]
[1769265524317,0.79398451,127.26,127.23,0.7946481]
[1769265541343,2.91009567,127.26,127.23,0.7946481]
[1769265541544,0.80454086,127.25,127.23,0.7946481]
[1769265541838,2.11611116,127.25,127.23,0.7946481]
[1769265543862,2.25119391,127.26,127.23,0.7946481]
[1769265547143,2.25189541,127.26,127.23,0.7946481]
[1769265559852,0.15654677,127.25,127.23,0.7946481]
[1769265560339,2.27449631,127.26,127.23,0.7946481]
[1769265577171,0.17603406,127.25,127.23,0.7946481]
[1769265577467,2.11681266,127.25,127.23,0.7946481]
[1769265578246,2.29376217,127.25,127.22,0.85131763]
[1769265578743,2.11681266,127.25,127.22,0.85131763]
[1769265589080,2.29376217,127.26,127.22,0.85131763]
[1769265592282,2.11681266,127.25,127.22,0.85131763]
[1769265598467,2.29376217,127.26,127.22,0.85131763]
[1769265606769,0.17694951,127.26,127.23,0.84134608]
[1769265607490,2.29358774,127.26,127.23,0.84134608]
[1769265625401,0.21089552,127.28,127.23,0.84134608]
[1769265625585,2.32753375,127.28,127.24,0.85624777]
[1769265628586,2.32753375,127.28,127.24,2.11663823]
[1769265628786,2.32753375,127.28,127.25,0.85624777]
[1769265648502,0.21089552,127.28,127.25,0.85624777]
[1769265684658,2.3268581,127.28,127.25,0.85624777]
[1769265689263,0.21089552,127.28,127.25,0.85624777]
[1769265694789,125.30237401,127.29,127.25,0.85624777]
[1769265695989,123.18641143,127.29,127.25,0.85624777]
[1769265699493,123.18641143,127.29,127.23,0.94289139]
[1769265699494,0.23568977,127.27,127.23,0.94289139]
[1769265699672,0.23568977,127.26,127.23,0.94289139]
[1769265699874,2.35165235,127.26,127.23,0.94289139]
[1769265700073,2.11596258,127.26,127.23,0.94289139]
[1769265702600,2.11596258,127.25,127.23,0.94289139]
[1769265702805,2.35230498,127.25,127.23,0.94289139]
[1769265705590,2.35230498,127.25,127.21,7.69596275]
[1769265705797,0.23699459,127.24,127.21,0.94289139]
[1769265706797,2.35295717,127.24,127.21,0.94289139]
[1769265708582,2.11596258,127.24,127.21,0.94289139]
[1769265717582,0.23761924,127.25,127.21,0.94289139]
[1769265717784,2.11596258,127.24,127.21,0.94289139]
[1769265728923,2.11743371,127.24,127.21,0.94289139]
[1769265737032,2.11743371,127.23,127.21,0.94289139]
[1769265739416,2.11743371,127.24,127.21,0.94289139]
[1769265744844,2.31734449,127.24,127.21,0.94289139]
[1769265745038,2.11743371,127.23,127.21,0.94289139]
[1769265749251,2.31734449,127.24,127.21,0.94289139]
[1769265753032,2.11743371,127.23,127.21,0.94289139]
[1769265753850,0.19991078,127.24,127.21,0.94289139]
[1769265754059,2.31734449,127.24,127.21,0.94289139]
[1769265755168,2.11743371,127.23,127.21,0.94289139]
[1769265760357,2.31734449,127.24,127.21,0.94289139]
[1769265788894,2.3175423,127.24,127.21,0.94289139]
[1769265798702,0.19991078,127.24,127.21,0.94289139]
[1769265798897,2.3175423,127.24,127.21,0.94289139]
[1769265812919,0.16246911,127.25,127.21,0.94289139]
[1769265813127,2.11763152,127.24,127.21,0.94289139]
[1769265815651,2.11763152,127.25,127.22,0.8706145]
[1769265815947,2.27914265,127.25,127.22,0.8706145]
[1769265817038,2.11763152,127.24,127.22,0.8706145]
[1769265820845,2.27914265,127.25,127.22,0.8706145]
[1769265829855,0.16151113,127.25,127.22,0.8706145]
[1769265830056,2.27914265,127.25,127.22,0.8706145]
[1769265831050,105.41763152,127.26,127.22,0.8706145]
[1769265831258,103.3,127.26,127.23,0.8706145]
[1769265832236,105.41763152,127.26,127.23,0.8706145]
[1769265837664,2.11763152,127.26,127.23,0.8706145]
[1769265844773,2.11763152,127.25,127.23,0.8706145]
[1769265850888,2.11704026,127.25,127.23,0.8706145]
[1769265856471,2.2650466,127.26,127.23,0.8706145]
[1769265863088,2.11704026,127.24,127.22,0.83406124]
[1769265863582,2.11704026,127.23,127.22,0.83406124]
[1769265863793,2.11704026,127.24,127.22,0.83406124]
[1769265867297,2.25297882,127.24,127.22,0.83406124]
[1769265868488,2.25250078,127.24,127.22,0.83406124]
[1769265868698,2.25250078,127.24,127.21,0.83406124]
[1769265869875,2.11704026,127.23,127.2,0.83406124]
[1769265878177,2.25202907,127.24,127.2,0.83406124]
[1769265881489,2.11704026,127.23,127.2,0.83406124]
[1769265891812,2.25202907,127.24,127.2,0.83406124]
[1769265901905,2.25202907,127.24,127.21,0.85092243]
[1769265903321,2.11704026,127.24,127.21,0.85092243]
[1769265905922,2.23336656,127.24,127.21,0.85092243]
[1769265907326,2.11704026,127.24,127.21,0.85092243]
[1769265907724,2.23231358,127.24,127.21,0.85092243]
[1769265913024,2.23278446,127.24,127.21,0.85092243]
[1769265948074,0.11527332,127.24,127.21,0.85092243]
[1769265954178,2.23278446,127.24,127.21,0.85092243]
[1769265957383,2.20090465,127.25,127.22,0.86919778]
[1769265962096,103.37685235,127.27,127.23,0.86919778]
[1769265962272,2.11751114,127.26,127.23,0.86919778]
[1769265962590,2.19119675,127.26,127.23,0.86919778]
[1769265964594,0.07368561,127.26,127.23,0.86919778]
[1769265969096,2.19119675,127.26,127.23,0.86919778]
[1769265971302,2.11751114,127.25,127.23,0.86919778]
[1769265974303,2.19119675,127.26,127.23,0.86919778]
[1769265974986,2.19054351,127.26,127.23,0.86919778]
[1769265988719,2.1168579,127.25,127.23,0.86919778]
[1769265989927,2.19054351,127.26,127.23,0.86919778]
[1769265996728,103.32763593,127.27,127.23,0.86919778]
[1769265996903,2.1168579,127.26,127.23,0.86919778]
[1769265999240,103.32763593,127.27,127.23,0.86919778]
[1769265999406,2.1168579,127.26,127.23,0.86919778]
[1769266001232,0.78709868,127.22,127.12,2.46927423]
[1769266001432,2.1168579,127.2,127.14,21.82]
[1769266001730,2.1168579,127.2,127.15,2.1168579]
[1769266001934,7.46094646,127.2,127.15,2.1168579]
[1769266002534,7.46094646,127.2,127.15,9.98142504]
[1769266003219,7.46094646,127.2,127.16,0.78474448]
[1769266008238,2.90395658,127.19,127.16,0.78474448]
[1769266012843,2.1168579,127.19,127.16,0.78474448]
[1769266014243,2.90395658,127.2,127.16,0.78474448]
[1769266015836,0.78709868,127.21,127.17,0.78474448]
[1769266016040,2.90395658,127.21,127.17,0.78474448]
[1769266019240,2.1168579,127.2,127.17,0.78474448]
[1769266021750,2.90395658,127.21,127.17,0.78474448]
[1769266024259,2.1168579,127.2,127.17,0.78474448]
[1769266024848,0.81171461,127.22,127.18,0.80911795]
[1769266025054,0.81171461,127.22,127.19,0.80911795]
[1769266025944,2.1168579,127.23,127.19,0.80911795]
[1769266026163,0.81171461,127.23,127.2,0.80911795]
[1769266026740,2.92857251,127.23,127.2,0.80911795]
[1769266034179,0.81171461,127.23,127.2,0.80911795]
[1769266038046,0.78926419,127.24,127.2,0.80911795]
[1769266038247,111.55113713,127.25,127.21,0.83801463]
[1769266038964,8.25113713,127.25,127.21,0.83801463]
[1769266039670,0.78926419,127.24,127.21,0.83801463]
[1769266043684,2.90704857,127.24,127.21,0.83801463]
[1769266044482,0.78926419,127.24,127.21,0.83801463]
[1769266051802,0.78926419,127.24,127.2,0.83801463]
[1769266051978,2.90704857,127.24,127.2,2.95579901]
[1769266052503,2.90704857,127.24,127.21,0.80687738]
[1769266058106,0.78926419,127.24,127.21,0.80687738]
[1769266063112,6.16227873,127.25,127.21,0.80687738]
[1769266063414,8.28006311,127.25,127.22,0.80687738]
[1769266063916,2.93597455,127.25,127.22,0.80687738]
[1769266065215,2.11778438,127.24,127.22,0.80687738]
[1769266066514,2.93597455,127.25,127.22,0.80687738]
[1769266067816,0.81819017,127.25,127.22,0.80687738]
[1769266068120,0.81819017,127.26,127.22,0.80687738]
[1769266068298,2.93597455,127.26,127.22,0.80687738]
[1769266073715,8.28006311,127.27,127.23,0.80687738]
[1769266076627,6.16227873,127.27,127.23,0.80687738]
[1769266076923,8.28006311,127.27,127.23,0.80687738]
[1769266081528,0.81819017,127.27,127.24,0.80687738]
[1769266082213,2.93597455,127.27,127.24,0.80687738]
[1769266094439,0.81819017,127.27,127.24,0.80687738]
[1769266094938,2.11778438,127.28,127.25,0.81868555]
[1769266094939,2.90990281,127.28,127.25,0.81868555]
[1769266097139,2.90821542,127.28,127.25,0.81868555]
[1769266099036,0.79211843,127.28,127.25,0.81868555]
[1769266137279,2.90821542,127.28,127.25,0.81868555]
[1769266141188,2.11609699,127.27,127.25,0.81868555]
[1769266142487,2.90821542,127.28,127.25,0.81868555]
[1769266146002,0.79211843,127.28,127.25,0.81868555]
[1769266146298,2.90821542,127.28,127.25,0.81868555]
[1769266150798,0.87264679,127.27,127.25,0.81868555]
[1769266152183,2.98874378,127.28,127.25,0.81868555]
[1769266156602,0.87264679,127.27,127.25,0.81868555]
[1769266157703,2.9888901,127.28,127.25,0.81868555]
[1769266165612,0.87264679,127.27,127.23,2.92143585]
[1769266172789,0.87264679,127.27,127.23,0.80519254]
[1769266174513,0.87264679,127.27,127.23,8.66494357]
[1769266176616,0.79805829,127.26,127.23,8.66494357]
[1769266182115,0.79805829,127.29,127.24,0.82459038]
[1769266182325,2.9143016,127.28,127.24,0.82459038]
[1769266186928,0.79805829,127.27,127.24,0.82459038]
[1769266189923,2.9143016,127.28,127.24,0.82459038]
[1769266191137,0.79805829,127.27,127.24,0.82459038]
[1769266202137,2.9143016,127.27,127.23,0.82459038]
[1769266202438,0.79805829,127.26,127.23,0.82459038]
[1769266204239,2.95929499,127.27,127.23,0.82459038]
[1769266204448,0.84305168,127.28,127.24,0.80666242]
[1769266204636,2.95929499,127.28,127.24,0.80666242]
[1769266204937,2.11624331,127.28,127.24,0.80666242]
[1769266205133,0.84305168,127.27,127.24,0.80666242]
[1769266222152,0.84305168,127.27,127.23,0.79435414]
[1769266222648,2.115996,127.27,127.23,0.79435414]